Cogmind - Beta 16.1 @@@ ROGUE MODE // 2026.03.20 @ 22:47:45 // Winter2019/RPGLIKE Player: john Result: Destroyed by G-34 Mercenary with Small Laser Performance ------------- Evolutions (1) 500 Regions Visited (2) 400 Robots Destroyed (25) 125 Value Destroyed (598) 598 Prototype IDs (0) 0 Alien Tech Used (0) 0 Bonus (0) 0 TOTAL SCORE: 1623 Bonus ------- None Cogmind --------- Core Integrity 0/650 Matter 300/300 Energy 265/265 System Corruption 0% Temperature Cool (6) Movement Walking (105) Location -9/Materials Parts ------- > --- POWER (1) -------- Improved Ion Engine > --- PROPULSION (2) --- Aluminum Leg Aluminum Leg > --- UTILITY (2) ------ Structural Scanner Tractor Beam > --- WEAPON (1) ------- Heavy Hammer > --- INVENTORY (1) ---- Protomatter-19 Peak State ------------ > --- POWER ------------ Improved Ion Engine > --- PROPULSION ------- Aluminum Leg Aluminum Leg > --- UTILITY ---------- Structural Scanner Tractor Beam > --- WEAPON ----------- Flail > --- INVENTORY -------- Light Ion Engine [Rating: 8] Favorites ----------- Power Improved Ion Engine Engine Improved Ion Engine Propulsion Aluminum Leg Leg Aluminum Leg Utility Tractor Beam Device Tractor Beam Weapon Flail Impact Weapon Flail Build | -11 -10 -9 ------- Run | Yrd Mat Mat Slots Evolved 2 | 2 . . Power . | . . . Propulsion 1 | 1 . . Utility 1 | 1 . . Weapon . | . . . Parts Attached 8 | 3 3 2 Power 2 | 1 . 1 Engine 2 | 1 . 1 Core . | . . . Reactor . | . . . Propulsion 2 | 2 . . Treads . | . . . Leg 2 | 2 . . Wheel . | . . . Hover . | . . . Flight . | . . . Utility 2 | . 2 . Device 2 | . 2 . Storage . | . . . Processor . | . . . Hackware . | . . . Protection . | . . . Artifact . | . . . Weapon 2 | . 1 1 Energy Gun . | . . . Energy Cannon . | . . . Ballistic Gun . | . . . Ballistic Cannon . | . . . Launcher . | . . . Special Weapon . | . . . Impact Weapon 2 | . 1 1 Slashing Weapon . | . . . Piercing Weapon . | . . . Special Melee Weapon . | . . . Unidentified Prototypes . | . . . Parts Lost . | . . . Power . | . . . Propulsion . | . . . Utility . | . . . Weapon . | . . . Highest Loss Streak . | . . . To Critical Strikes . | . . . Average Backups . | . . . Power . | . . . Propulsion . | . . . Utility . | . . . Weapon . | . . . Tool/Special . | . . . Unused Backups . | . . . Power . | . . . Propulsion . | . . . Utility . | . . . Weapon . | . . . Tool/Special . | . . . Average Slot Usage (%) 89 | . 66 100 Engine 16 | . 16 16 Leg 33 | . 33 33 Device 24 | . 6 33 Impact Weapon 13 | . 9 16 Peak Build Rating 8 | 3 7 8 Average Rating 6 | 2 4 7 On Entrance 3 | . 3 7 Avg Prop Armor Cover (%) . | . . . Naked Turns . | . . . Heaviest Build 12 | 3 7 12 Greatest Support 20 | 20 20 20 Greatest Overweight (x) . | . . . Average Overweight (x) . | . . . Largest Inventory Capacity 1 | . . 1 Average Capacity . | . . . Most Carried 1 | . . 1 Average Carried . | . . . Final Capacity 1 | . . 1 Final Carried 1 | . . 1 Class Distribution -------------------- 100% | Mutant Dominant Class ---------------- Mutant | -10/Materials Mutant | -9/Materials Resources | -11 -10 -9 ----------- Run | Yrd Mat Mat Matter Collected 276 | 39 199 38 Remotely 163 | . 125 38 Salvage Created 499 | . 187 312 Parts 20 | . 4 16 Haulers Intercepted . | . . . Recyclers Shooed . | . . . Parts Field Recycled . | . . . Retrieved Matter . | . . . Parts Self-Destructed . | . . . Prevented . | . . . Parts Restored . | . . . Kills | -11 -10 -9 ------- Run | Yrd Mat Mat Combat Hostiles Destroyed 20 | . 2 18 Melee 11 | . 2 9 Classes Destroyed 7 | . 4 3 Worker 2 | . 1 1 Recycler 1 | . 1 . Watcher 2 | . 1 1 Swarmer 8 | . . 8 Grunt 7 | . 2 5 Duelist 1 | . . 1 Sentry 4 | . . 4 Best Kill Streak 6 | . 3 6 Combat Bots Only 6 | . 1 6 Max Kills in Single Turn 1 | . 1 1 Gunslinging . | . . . Exploded . | . . . Melee 1 | . 1 1 Uniques/NPCs Destroyed . | . . . Combat | -11 -10 -9 -------- Run | Yrd Mat Mat Hostile Shots Fired 199 | . 10 189 Missed 53 | . 2 51 Hits 146 | . 8 138 Melee 4 | . . 4 Projectile 142 | . 8 134 Damage Taken 1292 | . 88 1204 Core 1064 | . 72 992 Absorbed by Shields . | . . . Redirected to Core 749 | . 51 698 Ignored by Resistances 210 | . . 210 Core Remaining (%) 94 | 100 88 . Volleys Fired . | . . . Largest . | . . . Hottest . | . . . Shots Fired . | . . . Gun . | . . . Cannon . | . . . Launcher . | . . . Special . | . . . Kinetic . | . . . Thermal . | . . . Explosive . | . . . Electromagnetic . | . . . Robot Hit Streak . | . . . Robot Miss Streak . | . . . Penetration Max . | . . . Secondary Targets . | . . . Shots Hit Robots 59 | . 12 47 Core Hits 7 | . 1 6 Critical Kills . | . . . Critical Parts Destroyed 12 | . 2 10 Critical Strikes 12 | . 2 10 Smash 12 | . 2 10 Melee Attacks 70 | . 15 55 Impact 70 | . 15 55 Slashing . | . . . Piercing . | . . . Sneak Attacks 5 | . 2 3 Combat Hostiles 1 | . . 1 Follow-up Attacks . | . . . Damage Inflicted 2201 | . 555 1646 Guns . | . . . Cannons . | . . . Explosions . | . . . Melee 2199 | . 553 1646 Ramming 2 | . 2 . Kinetic . | . . . Thermal . | . . . Explosive . | . . . Electromagnetic . | . . . Impact 2199 | . 553 1646 Slashing . | . . . Piercing . | . . . Highest Corruption . | . . . Average Corruption . | . . . Corruption Purged . | . . . Corruption Blocked . | . . . Overload Shots . | . . . Overflow Damage 765 | . 224 541 Projectiles . | . . . Explosions . | . . . Melee 765 | . 224 541 Knockbacks 7 | . 2 5 Impact 7 | . 2 5 Kinetic . | . . . Secondary . | . . . Self-Inflicted Damage . | . . . Shots . | . . . Rammed . | . . . Targets Rammed 1 | . 1 . Kicked 1 | . 1 . Crushed . | . . . Highest Temperature . | . . . Average Temperature . | . . . Received Heat Transfer 330 | . 48 282 Siege Activations . | . . . Martial Activations . | . . . Shielding Activations . | . . . Robots Disrupted . | . . . Combat Hostiles . | . . . Robots Corrupted 13 | . 2 11 Combat Hostiles 9 | . . 9 Parts Fried 12 | . 2 10 Impact Corruptions 33 | . 7 26 Robots Melted . | . . . Combat Hostiles . | . . . Parts Melted . | . . . Heat Transferred . | . . . Parts Sabotaged . | . . . Parts Stolen . | . . . Parts Stripped . | . . . Power Chain Reactions . | . . . Alert | -11 -10 -9 ------- Run | Yrd Mat Mat Maximum Alert Level 1 | . . 1 Low Security (%) 97 | 100 100 96 Level 1 2 | . . 3 Level 2 . | . . . Level 3 . | . . . Level 4 . | . . . Level 5 . | . . . High Security . | . . . Max Security . | . . . Peak Influence 254 | . 22 254 Initial 8 | . . 8 Average 61 | . 4 89 Influence Increases 603 | . 82 521 Destroy 0b10 Robot/C 400 | . 40 360 Destroy 0b10 Robot/NC 25 | . 15 10 Destroy Leader 114 | . 12 102 Successful Hack 2 | . . 2 Destroy Structure 2 | . . 2 Partial Spotted 15 | . 15 . Lose Combat Pursuer 45 | . . 45 Influence Decreases 349 | . 62 287 Entered New Map 12 | . . 12 Time Decay 337 | . 62 275 Squads Dispatched 4 | . 2 2 Investigation 2 | . 1 1 Extermination . | . . . Reinforcement 2 | . 1 1 Assault . | . . . Garrison . | . . . Intercept . | . . . Searches Triggered . | . . . Construction Impeded . | . . . Haulers Reinforced . | . . . Active Scanning Responses . | . . . Cargo Convoy Interrupts . | . . . Stealth | -11 -10 -9 --------- Run | Yrd Mat Mat Distress Signals 3 | . 1 2 Communications Jammed . | . . . Distress Signals . | . . . Times Spotted 32 | . 7 25 Peak Tracking Total 9 | . 4 9 Tactical Retreats 3 | . . 3 Traps | -11 -10 -9 ------- Run | Yrd Mat Mat Traps Triggered . | . . . Indirectly . | . . . Trap Hack Attempts . | . . . Triggered . | . . . Disarmed . | . . . Reprogrammed . | . . . Reused . | . . . Traps Extracted . | . . . Installed . | . . . Triggered . | . . . Machines | -11 -10 -9 ---------- Run | Yrd Mat Mat Machines Disabled . | . . . Max in Single Turn . | . . . Machines Repaired . | . . . Machines Dismantled . | . . . Machines Sabotaged . | . . . Overloaded Fab Kills . | . . . Hacking | -11 -10 -9 --------- Run | Yrd Mat Mat Machines Accessed 4 | . 2 2 Terminals 2 | . 1 1 Fabricators . | . . . Repair Stations . | . . . Recycling Units 1 | . 1 . Scanalyzers 1 | . . 1 Garrison Access . | . . . Total Hacks 12 | . 4 8 Successful 6 | . 3 3 Failed 6 | . 1 5 Catastrophic . | . . . Database Lockouts . | . . . Manual . | . . . Terminals 6 | . 1 5 Fabricators . | . . . Repair Stations . | . . . Recycling Units 3 | . 3 . Scanalyzers 3 | . . 3 Garrison Access . | . . . Terminal Hacks 1 | . 1 . Alert Level 1 | . 1 . Fabricator Hacks . | . . . Repair Station Hacks . | . . . Recycling Unit Hacks 2 | . 2 . Report Inventory 1 | . 1 . Retrieve Components 1 | . 1 . Scanalyzer 3 | . . 3 Retrieve Study 3 | . . 3 Garrison Access Hacks . | . . . Unauthorized Hacks . | . . . Terminals . | . . . Fabricators . | . . . Repair Stations . | . . . Recycling Units . | . . . Scanalyzers . | . . . Garrison Access . | . . . Data Cores Recovered . | . . . Used . | . . . Hacking Detections 4 | . 2 2 Full Trace Events 2 | . 1 1 Feedback Events . | . . . Feedback Blocked . | . . . Robot Schematics Acquired . | . . . Robots Built . | . . . Authchips . | . . . Time . | . . . Total Robot Build Rating . | . . . Part Schematics Acquired . | . . . Parts Built . | . . . Authchips . | . . . Time . | . . . Total Part Build Rating . | . . . Part Studies Acquired 3 | . . 3 Parts Repaired . | . . . Time . | . . . Parts Recycled . | . . . Recycled Matter . | . . . Retrieved Matter . | . . . Retrieved Components 3 | . 3 . Parts Scanalyzed . | . . . Part Schematics Acquired . | . . . Parts Damaged . | . . . Bothacking | -11 -10 -9 ------------ Run | Yrd Mat Mat Used RIF Installer . | . . . Robots Hacked . | . . . Non-combat . | . . . Combat . | . . . Robot Hacks Applied . | . . . Relay Couplers Released . | . . . Fabnet Peak Effective % . | . . . Robots Rewired . | . . . Allies Hacked . | . . . Hacks Repelled . | . . . Allies | -11 -10 -9 -------- Run | Yrd Mat Mat Total Allies . | . . . Largest Group . | . . . Highest-Rated Group . | . . . Highest-Rated Ally . | . . . Total Orders . | . . . Ally Attacks . | . . . Total Damage . | . . . Kills . | . . . Allies Corrupted . | . . . Allies Melted . | . . . Intel | -11 -10 -9 ------- Run | Yrd Mat Mat Active Infowar (turns) 753 | . 57 696 Structural 753 | . 57 696 Robot Analysis Total . | . . . Derelict Logs Recovered . | . . . Drone Launches . | . . . Drone Recoveries . | . . . Exploration | -11 -10 -9 ------------- Run | Yrd Mat Mat Turns Passed 1039 | 27 316 696 Spaces Moved 653 | 21 216 416 Core 3 | 3 . . Treads . | . . . Legs 650 | 18 216 416 Wheels . | . . . Hover . | . . . Flight . | . . . Fastest Speed 50 | 50 120 105 Average Speed 117 | 110 120 116 Slowest Speed 120 | 120 120 120 Overloaded Moves . | . . . Propulsion Burnouts . | . . . Robots Hopped . | . . . Potential Cave-ins . | . . . Cave-ins Triggered . | . . . Exploration Rate (%) 34 | 3 53 47 Regions Visited 2 Branch Regions . Pre-discovered Areas . | . . . Known Exits Taken . | . . . Unknown Exits Taken 2 | 1 1 . Scrap Searched . | . . . Spaces Dug 2 | . . 2 Terrain Destroyed 2 | . . 2 Melee 2 | . . 2 Projectile . | . . . AOE . | . . . Terrain Rammed . | . . . Walls Destroyed . | . . . Machines Disabled . | . . . Actions | -11 -10 -9 --------- Run | Yrd Mat Mat Total 812 | 23 248 541 Wait 51 | . 14 37 Move 651 | 20 215 416 Hop . | . . . Pick Up 1 | . . 1 Fast Attach 6 | 3 3 . Attach . | . . . Detach . | . . . Swap 2 | . . 2 Drop 2 | . . 2 Fire . | . . . Melee 70 | . 15 55 Ram . | . . . Kick 1 | . 1 . Crush . | . . . Escape Stasis . | . . . Rewire . | . . . Trap . | . . . Miscellaneous 28 | . . 28 Route ------- -11/Scrapyard -10/Materials (discovered 2 exits: *Mat x2) -9/Materials (discovered 3 exits: [*Mat] / [*Min] / [*Sto]) History --------- Turn | Location | Event 1 | -11/Scrapyard | Upgraded with Propulsion slot (x1) 1 | -11/Scrapyard | Upgraded with Utility slot (x1) 3 | -11/Scrapyard | Discovered new exit (range 16) 28 | -11/Scrapyard | Entered Materials 173 | -10/Materials | Discovered new exit (range 16) 308 | -10/Materials | Build established: Mutant 334 | -10/Materials | Discovered new exit (range 9) 344 | -10/Materials | Entered another Materials area 346 | -9/Materials | Reached level 2 505 | -9/Materials | Discovered new exit (range 8) 790 | -9/Materials | Reached level 3 844 | -9/Materials | Discovered new exit (range 7) 915 | -9/Materials | Discovered new exit (range 15) 1006 | -9/Materials | Core integrity fell below 50% 1024 | -9/Materials | Core integrity fell below 20% 1040 | -9/Materials | Destroyed by G-34 Mercenary with Small Laser Last Messages --------------- 01013_ Melee Analysis Suite fried. 01013_ Katana fried. 01019_ R-06 Scavenger collects Corrupted Lgt. Treads. 01027_ S-10 Pest destroyed. 01027_ R-06 Scavenger collects Lgt. Ion Engine. 01028_ R-06 Scavenger collects Lgt. Assault Rifle. 01030_ Destroyed Flight Unit. 01030_ S-10 Pest system corrupted by crushing effect. 01033_ S-10 Pest suffers critical hit (Smash). 01033_ Destroyed Lgt. Assault Rifle. 01033_ Destroyed Flight Unit. 01033_ Destroyed Lgt. Ion Engine. 01033_ S-10 Pest system corrupted by crushing effect. 01033_ S-10 Pest destroyed. 01035_ G-34 Mercenary knocked back. 01036_ R-06 Scavenger inserts Flail into recycling unit. 01038_ Destroyed Aluminum Leg. 01038_ G-34 Mercenary system corrupted by crushing effect. 01039_ R-06 Scavenger inserts Corrupted Lgt. Treads into recycling unit. Map ----- +----------------------------------------------------+ | ???????????????????????????????????????????????? | | ????????????????????????????????????????????????? | | ##?????????????????????????????????????????????? | | ####?????????????????????????????????????????????? | | ##?????????????????????????????????????????????? | | ##?????????????????????????????????????????????? | | ##?????????????????????????????????????????????? | | !##?????????????????????????????????????????????? | | ##### ?????????????????????????????????????????? | | ####### ????????????????????????????????????????? | | ????????????????????????????????????????? | | ???????????????????????????????????????? | | ##?????????????????????????????????????? | | ##?????????????????????????????????????? | | ?????????????????????????????????????? | | ??????????????????????????????????????? | | ??????????????????????????????????????? | | ??????????????????????????????????????? | | #######+## ??????????????????????????????????????? | | ### ##??????????????????????????????????????? | | ### ##??????????????????????????????????????? | | ### ##??????##+??????####???????????????????? | | + ##??????## ?###########?????????????????? | | ### ##??????## ?######g####?????????????????? | | ### ##?? ???## ?##%%%%w # ?????????????????? | | ?###+######?? ???## ?##%%@g # ?????????????????? | | ?### ######## ???## ### """ # ?????????????????? | | #### ######## ???## ### """r # ?????????????????? | | #### ######## ##### ### """ # """??????????????? | | ## # "" # ##### # + """??????????????? | | ## # ""S # T + ! # ??????????? | | + "" #% # r =# ?????????????????? | | ## # # ^^ # "Y" ##?????????????????? | | ## # # # """ ##?????????????????? | | #?## + ]# ^ # ###########????????? | | #?## ######## " ###################????????? | | ??## ####### """ ########### """ ##????????? | | ?### ####### """ + """ ##????????? | | ?###+####### """ ########### """ ##????????? | | ?## ! # "" ########### ##????????? | | ?## # """ ##???????## ##????????? | | ?## # "" ########### ###???????? | | ?## # "" ##############+#####???????? | | ?## < # " ##???????? | | ?## + < ##???????? | | ?## # ##???????? | | ?## ##################+######+#####???????? | | ?## /########### # ##???????? | | ?##### ######???????## """"""" # """" ##???????? | | ?############???????## """"""" # """" ##???????? | +----------------------------------------------------+ Best States ------------- Heat Dissipation 25 Energy Generation 14 Energy Capacity 265 Matter Stores 300 Matter Capacity 300 Sight Range 16 Robot Scan Range 2 Terrain Scan Density 10 Resistance: KI 15 Resistance: TH 10 Resistance: EX 5 Evasion (%) 55 Item Schematics ----------------- None Robot Schematics ------------------ None Fabricated ------------ Nothing Repaired ---------- Nothing Studied --------- Aluminum Leg | -9/Materials | Hacked Hvy. Hammer | -9/Materials | Hacked Imp. Ion Engine | -9/Materials | Hacked Alien Tech Used ----------------- None Achievements -------------- None Challenges ------------ None RPGLIKE | -11 -10 -9 --------- Run | Yrd Mat Mat Levels Raised 2 | . . 2 XP Earned 7050 | 3000 250 3800 XP Spent 5725 | 3000 . 2725 Upgrades 17 | 7 . 10 Propulsion Slot 1 | 1 . . Utility Slot 1 | 1 . . Core Integrity 1 | . . 1 Inventory Capacity 1 | . . 1 Sensor Range 1 | . . 1 Melee Accuracy 6 | 5 . 1 KI Resistance % 3 | . . 3 TH Resistance % 2 | . . 2 EX Resistance % 1 | . . 1 Protomatter Created 300 | . . 300 Integrity Restored 534 | . . 534 Core 408 | . . 408 Parts 126 | . . 126 Protomatter Decayed 50 | . . 50 Game ------ Seed AmyLove Manual? 1 Play Time 00:20:20 Cumulative 32.0 hours Start 2026.03.20 @ 22:27:25 End 2026.03.20 @ 22:47:45 Sessions 1 Manual Loads 0 Difficulty Rogue Special Mode Winter2019/RPGLIKE Game No. 21 Rogue 18 Adventurer 0 Explorer 3 Win Type - Total 3 Types 1/0/0/2/0/0/0/0/0/0 Lore% 17 Gallery% 25 Achievement% 31 Wizard Run 0 Options --------- Layout 0 ASCII 0 Keyboard 1 Movement Numpad Keybinds 0 Fullscreen 1 Font 20/Smallcaps Map View 66x50 Zoom Use 0% Tactical HUD 1 Map Filters NONE Filters NONE Steam 1 RUN: 0217fda1-f926-4f15-b156-0f72993849ae